fUSD/lending_fUSD_20241021
["ID","MTS","AMOUNT","RATE_DAILY","PERIOD"]
[340620711,1729545032057,-3884.069,0.00042945,2]
[340620712,1729545032066,-1151.0,0.00042945,2]
[340620713,1729545032075,-150.0,0.00042945,2]
[340620714,1729545032084,-312.72,0.00043325,7]
[340620715,1729545032094,-312.72,0.00043325,7]
[340620716,1729545032103,-312.72,0.00043325,7]
[340620717,1729545032111,-312.72,0.00043325,7]
[340620718,1729545032120,-312.72,0.00043325,7]
[340620719,1729545032129,-312.72,0.00043325,7]
[340620720,1729545032138,-312.72,0.00043325,7]
[340620721,1729545032147,-312.72,0.00043325,7]
[340620722,1729545032156,-312.72,0.00043325,7]
[340620723,1729545032165,-501.252195,0.00044,57]
[340620724,1729545032174,-309.79,0.00044146,2]
[340620725,1729545032182,-67776.73,0.000446,7]
[340620726,1729545032191,-1994.20053608,0.000446,7]
[340620727,1729545037656,-526.17759152,0.00043708,10]
[340620923,1729545039736,-525.0254152,0.00043708,10]
[340620925,1729545039747,-724.3749549,0.000446,7]
[340620927,1729545039759,-804.015,0.000446,7]
[340621223,1729545042623,-2498.11370874,0.000446,7]
[340622770,1729545434781,-327.145,0.00011929,2]
[340622771,1729545502159,-150.0,0.00011919,2]
[340622772,1729545644031,160.68,0.00010959,2]
[340622773,1729545676232,250.0,0.0001,2]
[340622774,1729545677302,300.0,0.00012,2]
[340622775,1729545908152,4999289.32,0.00011,2]
[340622776,1729545908232,15749884.68575062,0.00011,2]
[340622790,1729546078657,902.09524369,0.0001,2]
[340622791,1729546081687,124623.19196022,0.00011,2]
[340622792,1729546114110,-3205.08343945,0.00012579,2]
[340622793,1729546114138,-2998.85987886,0.00013,2]
[340622794,1729546114167,-1791.18955719,0.000144,2]
[340622795,1729546114195,-7820.23081788,0.000145,2]
[340622796,1729546114223,-277149.69734789,0.00015,2]
[340622797,1729546119335,150.0,0.00015,3]
[340622798,1729546123059,254.57286084,0.000107,2]
[340622806,1729546158454,155.48,0.00010959,2]
[340622817,1729546231914,-150.0,0.00014487,2]
[340622818,1729546231924,-9374.24594224,0.000145,2]
[340622819,1729546231937,-315.07,0.000145,2]
[340622820,1729546231948,-701.0,0.000145,2]
[340622821,1729546231980,-545.89038411,0.000145,2]
[340622823,1729546231991,-5122.22480104,0.000145,2]
[340622826,1729546232002,-4.58429351,0.000145,2]
[340622828,1729546232011,-1303.41570649,0.000145,2]
[340622830,1729546232023,-530.81884513,0.000145,2]
[340622860,1729546237815,-595.76544838,0.000145,2]
[340622861,1729546237825,-15815.36369338,0.00015,2]
[340622862,1729546237834,-300.0,0.00015399,2]
[340622863,1729546237843,-15822.16729633,0.000154,2]
[340622864,1729546237852,-4409.30533973,0.000154,2]
[340622865,1729546237861,-3870.1970081,0.000159,2]
[340622866,1729546237870,-15985.22005509,0.00018,2]
[340622867,1729546238093,-4120.08190884,0.00018,2]
[340622868,1729546238103,-5275.70244989,0.000199,2]
[340622869,1729546238156,-10889.33536701,0.000199,2]
[340622870,1729546238166,-9.89907184,0.000199,2]
[340622871,1729546238175,-500.0,0.00019973,2]
[340622872,1729546238184,-219.27610219,0.00019973,2]
[340622873,1729546238195,-280.72389781,0.00019973,2]
[340622874,1729546238204,-184.96,0.0001999,3]
[340622875,1729546238217,-10.13743564,0.0001999,2]
[340622891,1729546239787,-1618.86926637,0.0001999,2]
[340622892,1729546239799,-2527.33329799,0.0001999,2]
[340622893,1729546239809,-4156.34,0.0001999,2]
[340622894,1729546239819,-554.91,0.0001999,3]
[340622895,1729546239829,-499.99,0.00019999,2]
[340622896,1729546239838,-888.58226552,0.0002,2]
[340622897,1729546239848,-3650.69391649,0.0002,2]
[340622898,1729546239860,-5569.62396371,0.0002,2]
[340622899,1729546239872,-189584.22279247,0.0002,2]
[340622900,1729546239882,-24798.25095627,0.0002,2]
[340622901,1729546239891,-1165.70002204,0.000202,2]
[340622902,1729546239901,-2012.0,0.000203,2]
[340622903,1729546239910,-250.0,0.00020365,2]
[340622904,1729546239919,-159.14,0.00021328,2]
[340622905,1729546239931,-4541.0,0.00021347,2]
[340622906,1729546239941,-369.92,0.0002136,3]
[340622907,1729546239951,-166.33,0.00021402,2]
[340622908,1729546239960,-200.0,0.00021466,2]
[340622909,1729546239969,-2500.0,0.00021917,2]
[340622910,1729546239978,-500.0,0.00021989,2]
[340622911,1729546239987,-488.61566162,0.00021989,2]
[340622912,1729546239996,-455.3217079,0.00021989,2]
[340622913,1729546240005,-500.0,0.00021989,2]
[340622914,1729546240015,-500.0,0.00021989,2]
[340622915,1729546240024,-500.0,0.00021989,2]
[340622916,1729546240034,-500.0,0.00021989,2]
[340622917,1729546240044,-500.0,0.00021989,2]
[340622918,1729546240053,-500.0,0.00021989,2]
[340622919,1729546240063,-4156.34,0.0002199,2]
[340622920,1729546240072,-4156.34,0.0002199,2]
[340622921,1729546240082,-150.24,0.0002199,2]
[340622922,1729546240092,-4156.34,0.0002199,2]
[340622923,1729546240101,-150.24,0.0002199,2]
[340622924,1729546240110,-150.24,0.0002199,2]
[340622925,1729546240119,-150.24,0.0002199,2]
[340622926,1729546240128,-196.88204439,0.0002199,2]
[340622927,1729546240137,-179.8942328,0.00021999,2]
[340622928,1729546240147,-500.0,0.00021999,2]
[340622929,1729546240157,-328.79358128,0.00021999,2]
[340622930,1729546240167,-163.6641094,0.00021999,2]
[340622931,1729546240177,-2500.0,0.00021999,2]
[340622932,1729546240187,-2500.0,0.00021999,2]
[340622933,1729546240196,-499575.91694723,0.00022,2]
[340622934,1729546240206,-2669.54138594,0.000222,2]
[340622935,1729546240216,-150.24,0.0002249,2]
[340622936,1729546240225,-33678.06395889,0.000225,2]
[340622937,1729546240235,-150.0,0.00022698,2]
[340622938,1729546240244,-689.87,0.000229,2]
[340622939,1729546240253,-16174.9368887,0.00023089,2]
[340622940,1729546240262,-150.24,0.0002319,2]
[340622941,1729546240272,-49519.39372128,0.000232,2]
[340622942,1729546240282,-150.24,0.0002359,2]
[340622943,1729546240291,-150.24,0.0002359,2]
[340622944,1729546240301,-90561.0,0.000236,2]
[340622945,1729546240311,-162.30874923,0.00023822,2]
[340622946,1729546240320,-150.24,0.00023912,2]
[340622947,1729546240329,-150.24,0.00023912,2]
[340622948,1729546240339,-150.24,0.00023912,2]
[340622949,1729546240348,-150.24,0.00023912,2]
[340622950,1729546240358,-150.24,0.00023912,2]
[340622951,1729546240367,-150.24,0.00023912,2]
[340622952,1729546240376,-197.21774615,0.00023922,2]
[340622953,1729546240385,-335304.0,0.00023922,2]
[340622954,1729546240394,-302.786724,0.00023922,7]
[340622955,1729546240403,-302.786724,0.00023922,7]
[340622956,1729546240413,-500.0,0.00023973,2]
[340622957,1729546240422,-150.24,0.0002399,2]
[340622958,1729546240431,-2500.0,0.00023999,2]
[340622959,1729546240441,-76533.45002868,0.00024,2]
[340622960,1729546240450,-2372.41593424,0.00024,2]
[340622961,1729546240601,-1165.70002199,0.00024157,2]
[340622962,1729546240611,-3507.96264956,0.0002421,2]
[340622963,1729546240620,-3393.08553449,0.000245,2]
[340622964,1729546240629,-150.24,0.0002489,2]
[340622965,1729546240638,-15219.56798752,0.000249,2]
[340622966,1729546240647,-236.347814,0.000249,7]
[340622967,1729546240656,-236.347814,0.000249,7]
[340622968,1729546240665,-10000.0,0.000249,7]
[340622969,1729546240674,-10000.0,0.000249,7]
[340622970,1729546240683,-7084.552969,0.000249,7]
[340622971,1729546240692,-302.786724,0.000249,7]
[340622972,1729546240701,-302.786724,0.000249,7]
[340622973,1729546240711,-250.0,0.00025273,2]
[340622974,1729546240723,-566.74277841,0.00025342,2]
[340622975,1729546240732,-159.14,0.00025594,2]
[340622976,1729546240742,-16174.9368887,0.00026278,2]
[340622977,1729546240751,-155.48,0.00026712,2]
[340622978,1729546240760,-1165.70002199,0.00028114,2]
[340622979,1729546240770,-162.30874921,0.00028784,2]
[340622980,1729546240779,-16174.9368887,0.00029467,15]
[340622981,1729546240789,-166.33,0.00029963,2]
[340622982,1729546240799,-308.31964585,0.0003,2]
[340622983,1729546240809,-210.0,0.0003,2]
[340622984,1729546240819,-303.39,0.00031121,2]
[340622985,1729546240829,-1651.42,0.00032052,10]
[340622986,1729546240839,-1981.7,0.00032062,10]
[340622987,1729546240848,-1165.70002199,0.00032071,2]
[340622988,1729546240857,-16174.9368887,0.00032656,15]
[340622989,1729546240866,-3991.82485971,0.00033374,6]
[340622990,1729546240876,-303.39,0.00033384,2]
[340622991,1729546240885,-162.30874921,0.00033745,2]
[340622992,1729546240894,-1000.0,0.00034327,120]
[340622993,1729546240904,-151.0,0.00034897,2]
[340622994,1729546240913,-303.39,0.00035648,2]
[340622995,1729546240923,-1165.70002199,0.00036029,2]
[340622996,1729546240937,-303.39,0.00037912,2]
[340622997,1729546240946,-162.30874921,0.00038707,2]
[340622998,1729546240955,-643.58618466,0.000389,2]
[340622999,1729546240965,-8060.30130047,0.000389,2]
[340623000,1729546240976,-2616.6165075,0.000389,2]
[340623001,1729546240985,-150.24,0.0003898,2]
[340623002,1729546240995,-150.24,0.0003898,2]
[340623003,1729546241006,-150.24,0.0003898,2]
[340623004,1729546241016,-150.24,0.0003898,2]
[340623005,1729546241026,-191607.593266,0.0003899,8]
[340623006,1729546241036,-302.786724,0.0003899,14]
[340623007,1729546241045,-302.786724,0.0003899,14]
[340623008,1729546241055,-456.0,0.0003899,2]
[340623009,1729546241065,-150.24,0.0003899,2]
[340623010,1729546241074,-150.24,0.0003899,2]
[340623011,1729546241084,-150.24,0.0003899,2]
[340623012,1729546241095,-150.24,0.0003899,2]
[340623013,1729546241104,-150.24,0.0003899,2]
[340623014,1729546241114,-150.24,0.0003899,2]
[340623015,1729546241124,-150.24,0.0003899,2]
[340623016,1729546241133,-150.24,0.0003899,2]
[340623017,1729546241143,-150.24,0.0003899,2]
[340623018,1729546241153,-150.24,0.0003899,2]
[340623019,1729546241163,-150.24,0.0003899,2]
[340623020,1729546241172,-150.24,0.0003899,2]
[340623021,1729546241181,-150.24,0.0003899,2]
[340623022,1729546241191,-150.24,0.0003899,2]
[340623023,1729546241199,-150.24,0.0003899,2]
[340623024,1729546241209,-150.24,0.0003899,2]
[340623025,1729546241220,-150.24,0.0003899,2]
[340623026,1729546241229,-150.24,0.0003899,2]
[340623027,1729546241238,-150.24,0.0003899,2]
[340623028,1729546241248,-150.24,0.0003899,2]
[340623029,1729546241257,-150.24,0.0003899,2]
[340623030,1729546241267,-150.24,0.0003899,2]
[340623031,1729546241276,-150.24,0.0003899,2]
[340623032,1729546241286,-150.24,0.0003899,2]
[340623033,1729546241295,-150.24,0.0003899,2]
[340623034,1729546241304,-150.24,0.0003899,2]
[340623035,1729546241314,-150.24,0.0003899,2]
[340623036,1729546241323,-150.24,0.0003899,2]
[340623037,1729546241333,-150.24,0.0003899,2]
[340623038,1729546241342,-150.24,0.0003899,2]
[340623039,1729546241351,-150.24,0.0003899,2]
[340623040,1729546241361,-150.24,0.0003899,2]
[340623041,1729546241369,-150.24,0.0003899,2]
[340623042,1729546241379,-150.24,0.0003899,2]
[340623043,1729546241388,-150.24,0.0003899,2]
[340623044,1729546241397,-150.24,0.0003899,2]
[340623045,1729546241406,-196.88204439,0.0003899,2]
[340623046,1729546241415,-196.88204439,0.0003899,2]
[340623047,1729546241424,-2500.0,0.00038999,120]
[340623048,1729546241433,-2500.0,0.00038999,120]
[340623049,1729546241443,-2500.0,0.00038999,120]
[340623050,1729546241453,-2500.0,0.00038999,120]
[340623051,1729546241464,-2500.0,0.00038999,120]
[340623052,1729546241474,-2500.0,0.00038999,120]
[340623053,1729546241483,-2014719.00883572,0.00039,2]
[340623054,1729546241493,-236.347814,0.00039,14]
[340623055,1729546241502,-236.347814,0.00039,14]
[340623056,1729546241511,-10000.0,0.00039,14]
[340623057,1729546241521,-10000.0,0.00039,14]
[340623058,1729546241530,-302.786724,0.00039,14]
[340623059,1729546241539,-302.786724,0.00039,14]
[340623060,1729546241548,-1800.0,0.00039,40]
[340623061,1729546241558,-329.03,0.00039,30]
[340623062,1729546241567,-1165.70002199,0.00039986,2]
[340623063,1729546241576,-303.39,0.00040176,2]
[340623064,1729546241585,-250.0,0.00040718,120]
[340623065,1729546241595,-153.35,0.00041377,120]
[340623066,1729546241604,-23890.0,0.00041583,2]
[340623067,1729546241613,-303.39,0.0004244,2]
[340623068,1729546241623,-155.48,0.00042466,2]
[340623069,1729546241632,-4079.03,0.00043387,2]
[340623070,1729546241642,-150.24,0.0004359,2]
[340623071,1729546241652,-643.58618466,0.000436,2]
[340623072,1729546241661,-8060.30130047,0.000436,2]
[340623073,1729546241670,-2616.61650748,0.000436,2]
[340623074,1729546241680,-151.0,0.00043621,5]
[340623075,1729546241689,-162.30874921,0.00043668,12]
[340623076,1729546241698,-1091.3078941,0.00043708,10]
[340623077,1729546241708,-1165.70002199,0.00043943,28]
[340623078,1729546241718,-1999.76683518,0.00044,120]
[340623079,1729546241728,-150.0,0.00044,57]
[340623080,1729546241737,-1000.0,0.00044,7]
[340623081,1729546241747,-3014.278,0.00044052,69]
[340623082,1729546241756,-1000.0,0.00044053,2]
[340623083,1729546241765,-703.8443,0.000443,30]
[340623084,1729546241775,-1000.0,0.00044307,5]
[340623085,1729546241785,-4097.0,0.00044308,117]
[340623086,1729546241794,-1000.0,0.000444,7]
[340623087,1729546241804,-329.03,0.000444,60]
[340623088,1729546241814,-61460.07580028,0.000446,7]
[340623089,1729546241823,-6323.04,0.000446,7]
[340623090,1729546241833,-61389.2,0.000446,7]
[340623091,1729546241842,-26134.54,0.000446,7]
[340623092,1729546241851,-5506.69,0.000446,7]
[340623093,1729546241860,-20905.02,0.000446,7]
[340623094,1729546241870,-17512.77,0.000446,7]
[340623095,1729546241879,-8828.56,0.000446,7]
[340623096,1729546241888,-4726.3987616,0.00044673,2]
[340623097,1729546241897,-303.39,0.00044704,2]
[340623098,1729546241906,-164.52,0.00044767,2]
[340623099,1729546241916,-313.995068,0.000448,2]
[340623100,1729546241925,-1000.0,0.000448,7]
[340623101,1729546241939,-3055.84366681,0.00044989,2]
[340623102,1729546241950,-150.24,0.0004499,2]
[340623103,1729546241960,-150.24,0.0004499,2]
[340623104,1729546241971,-150.24,0.0004499,2]
[340623105,1729546241981,-500.0,0.00044999,120]
[340623106,1729546241990,-138078.30316324,0.00045,120]
[340623107,1729546242000,-2000.0,0.00045,7]
[340623108,1729546242009,-200.0,0.00045,7]
[340623109,1729546242019,-151.0,0.00045,14]
[340623110,1729546242028,-236.347814,0.00045,14]
[340623111,1729546242038,-236.347814,0.00045,14]
[340623112,1729546242047,-10000.0,0.00045,14]
[340623113,1729546242056,-10000.0,0.00045,14]
[340623114,1729546242065,-302.786724,0.00045,14]
[340623115,1729546242075,-302.786724,0.00045,14]
[340623116,1729546242084,-4697.8654534,0.00045013,2]
[340623117,1729546242094,-150.24,0.00045044,2]
[340623118,1729546242103,-28635.7612806,0.00045054,2]
[340623119,1729546242113,-812.9788327,0.00045054,2]
[340623120,1729546242122,-1245.0,0.000452,7]
[340623121,1729546242132,-219917.16,0.00045201,7]
[340623122,1729546242141,-28578.31,0.00045201,7]
[340623123,1729546242151,-150.0,0.00045398,120]
[340623124,1729546242161,-153.35,0.00045468,120]
[340623125,1729546242170,-6402.8203,0.0004558,120]
[340623126,1729546242180,-151.0,0.0004569,14]
[340623127,1729546242189,-236.347814,0.0004569,14]
[340623128,1729546242198,-236.347814,0.0004569,14]
[340623129,1729546242207,-10000.0,0.0004569,14]
[340623130,1729546242217,-10000.0,0.0004569,14]
[340623131,1729546242227,-150.24,0.0004569,2]
[340623132,1729546242236,-2537.4363,0.000457,2]
[340623133,1729546242246,-31789.2194,0.000457,2]
[340623134,1729546242255,-8896.44,0.000457,2]
[340623135,1729546242264,-2643.74,0.000457,2]
[340623136,1729546242274,-302.786724,0.000457,14]
[340623137,1729546242283,-302.786724,0.000457,14]
[340623138,1729546242292,-1000.0,0.0004589,2]
[340623139,1729546242302,-150.24,0.0004597,2]
[340623140,1729546242311,-300.986512,0.0004598,14]
[340623141,1729546242320,-243.859546,0.0004598,14]
[340623142,1729546242330,-243.859546,0.0004598,14]
[340623143,1729546242340,-243.859546,0.0004598,14]
[340623144,1729546242349,-243.859546,0.0004598,14]
[340623145,1729546242359,-151.0,0.0004598,14]
[340623146,1729546242368,-151.0,0.0004598,14]
[340623147,1729546242377,-236.347814,0.0004598,14]
[340623148,1729546242387,-236.347814,0.0004598,14]
[340623149,1729546242397,-236.347814,0.0004598,14]
[340623150,1729546242407,-236.347814,0.0004598,14]
[340623151,1729546242417,-10000.0,0.0004598,14]
[340623152,1729546242426,-10000.0,0.0004598,14]
[340623153,1729546242435,-10000.0,0.0004598,14]
[340623154,1729546242444,-10000.0,0.0004598,14]
[340623155,1729546242454,-243.859546,0.0004599,14]
[340623156,1729546242464,-243.859546,0.0004599,14]
[340623157,1729546242473,-151.0,0.0004599,14]
[340623158,1729546242483,-236.347814,0.0004599,14]
[340623159,1729546242493,-236.347814,0.0004599,14]
[340623160,1729546242502,-10000.0,0.0004599,14]
[340623161,1729546242513,-10000.0,0.0004599,14]
[340623162,1729546242523,-150.24,0.0004599,2]
[340623163,1729546242533,-150.24,0.0004599,2]
[340623164,1729546242542,-150.24,0.0004599,2]
[340623165,1729546242552,-150.24,0.0004599,2]
[340623166,1729546242561,-150.24,0.0004599,2]
[340623167,1729546242571,-150.24,0.0004599,2]
[340623168,1729546242581,-150.24,0.0004599,2]
[340623170,1729546242591,-150.24,0.0004599,2]
[340623171,1729546242601,-150.24,0.0004599,2]
[340623172,1729546242611,-150.24,0.0004599,2]
[340623173,1729546242620,-2000.0,0.00045999,120]
[340623174,1729546242630,-151.0,0.00046,7]
[340623175,1729546242640,-500000.0,0.00046,120]
[340623176,1729546242649,-243.859546,0.00046,14]
[340623177,1729546242658,-243.859546,0.00046,14]
[340623178,1729546242668,-151.0,0.00046,14]
[340623179,1729546242677,-236.347814,0.00046,14]
[340623181,1729546242686,-236.347814,0.00046,14]
[340623182,1729546242696,-10000.0,0.00046,14]
[340623184,1729546242705,-10000.0,0.00046,14]
[340623185,1729546242714,-302.786724,0.00046,14]
[340623186,1729546242724,-302.786724,0.00046,14]
[340623187,1729546242733,-176.36841775,0.00046143,21]
[340623188,1729546242744,-150.0,0.0004616,2]
[340623189,1729546242753,-2000.0,0.0004641,120]
[340623190,1729546242762,-23311.24528159,0.0004674,2]
[340623191,1729546242772,-2000.0,0.00046821,120]
[340623192,1729546242782,-4591.0,0.00046899,10]
[340623193,1729546242791,-360.0,0.000469,30]
[340623194,1729546242801,-150.24,0.00046958,2]
[340623195,1729546242810,-151.0,0.00046967,14]
[340623196,1729546242819,-303.39,0.00046968,2]
[340623197,1729546242829,-243.859546,0.00046968,14]
[340623198,1729546242838,-243.859546,0.00046968,14]
[340623199,1729546242849,-236.347814,0.00046968,14]
[340623200,1729546242859,-236.347814,0.00046968,14]
[340623201,1729546242869,-10000.0,0.00046968,14]
[340623202,1729546242878,-10000.0,0.00046968,14]
[340623203,1729546242889,-302.786724,0.00046968,14]
[340623204,1729546242898,-302.786724,0.00046968,14]
[340623205,1729546242909,-150.24,0.0004699,2]
[340623206,1729546242919,-150.24,0.0004699,2]
[340623207,1729546242930,-150.24,0.0004699,2]
[340623208,1729546242941,-150.24,0.0004699,2]
[340623209,1729546242951,-150.24,0.0004699,2]
[340623210,1729546242961,-150.24,0.0004699,2]
[340623211,1729546242971,-150.24,0.0004699,2]
[340623212,1729546242982,-150.24,0.0004699,2]
[340623213,1729546242992,-150.24,0.0004699,2]
[340623214,1729546243002,-150.24,0.0004699,2]
[340623215,1729546243013,-287.78716393,0.00046999,120]
[340623216,1729546243023,-375.0,0.00046999,14]
[340623217,1729546243032,-10824.10930713,0.00047,60]
[340623218,1729546243042,-298687.98371112,0.00047,120]
[340623219,1729546243058,-5307.9,0.00047,120]
[340623220,1729546243069,-711.24,0.00047,120]
[340623221,1729546243087,-510.66164817,0.00047,120]
[340623222,1729546243100,-529.54341828,0.00047,120]
[340623223,1729546243115,-97102.31917976,0.00047,120]
[340623224,1729546243126,-2080.25724065,0.00047,120]
[340623225,1729546243137,-397.08499999,0.00047,120]
[340623226,1729546243148,-555.54144089,0.00047,120]
[340623227,1729546243161,-493.87497899,0.00047,120]
[340623228,1729546243250,-45257.73761913,0.00047,120]
[340623230,1729546243266,-1061.28,0.00047,120]
[340623232,1729546243282,-333.59523142,0.00047,120]
[340623236,1729546243294,-3476.63696484,0.00047,120]
[340623239,1729546243305,-865.26308682,0.00047,120]
[340623240,1729546243317,-12985.68153013,0.00047,120]
[340623241,1729546243328,-1082.50348586,0.00047,120]
[340623244,1729546245689,-4883.9047737,0.00035844,15]
[340623245,1729546245750,-908.94469596,0.00035844,15]
[340623246,1729546245761,-1449.96550931,0.00035844,15]
[340623247,1729546245772,-591.5645175,0.00035844,15]
[340623248,1729546245924,-1412.93673964,0.00035844,15]
[340623249,1729546245938,-6927.62065259,0.00035844,15]
[340623250,1729546245947,-28560.89546395,0.00047,120]
[340623251,1729546245957,-150.0,0.00047,14]
[340623252,1729546245966,-3919.56406663,0.00047,60]
[340623253,1729546245976,-500.0,0.00047,7]
[340623254,1729546245985,-500.0,0.00047,7]
[340623255,1729546245995,-500.0,0.00047,7]
[340623256,1729546246004,-500.0,0.00047,7]
[340623257,1729546246014,-500.0,0.00047,7]
[340623258,1729546246023,-500.0,0.00047,7]
[340623259,1729546246033,-500.0,0.00047,7]
[340623260,1729546246042,-500.0,0.00047,7]
[340623261,1729546246051,-500.0,0.00047,7]
[340623262,1729546246060,-500.0,0.00047,7]
[340623263,1729546246069,-500.0,0.00047,7]
[340623264,1729546246078,-500.0,0.00047,7]
[340623265,1729546246087,-500.0,0.00047,7]
[340623266,1729546246097,-500.0,0.00047,7]
[340623267,1729546246106,-500.0,0.00047,7]
[340623268,1729546246114,-500.0,0.00047,7]
[340623269,1729546246123,-500.0,0.00047,7]
[340623270,1729546246132,-500.0,0.00047,7]
[340623271,1729546246141,-500.0,0.00047,7]
[340623272,1729546246150,-500.0,0.00047,7]
[340623273,1729546246160,-500.0,0.00047,7]
[340623274,1729546246293,-500.0,0.00047,7]
[340623275,1729546246302,-500.0,0.00047,7]
[340623276,1729546246311,-500.0,0.00047,7]
[340623277,1729546246320,-500.0,0.00047,7]
[340623278,1729546246329,-500.0,0.00047,7]
[340623279,1729546246338,-500.0,0.00047,7]
[340623280,1729546246347,-500.0,0.00047,7]
[340623281,1729546246355,-500.0,0.00047,7]
[340623282,1729546246364,-500.0,0.00047,7]
[340623283,1729546246373,-500.0,0.00047,7]
[340623284,1729546246382,-500.0,0.00047,7]
[340623285,1729546246391,-500.0,0.00047,7]
[340623286,1729546246400,-500.0,0.00047,7]
[340623287,1729546246408,-500.0,0.00047,7]
[340623288,1729546246418,-500.0,0.00047,7]
[340623289,1729546246426,-500.0,0.00047,7]
[340623290,1729546246435,-500.0,0.00047,7]
[340623291,1729546246444,-79.19213722,0.00047,7]
[340623292,1729546246459,-420.80786278,0.00047,7]
[340623293,1729546246469,-500.0,0.00047,7]
[340623294,1729546246479,-500.0,0.00047,7]
[340623295,1729546246488,-500.0,0.00047,7]
[340623296,1729546246497,-500.0,0.00047,7]
[340623297,1729546246506,-500.0,0.00047,7]
[340623298,1729546246515,-500.0,0.00047,7]
[340623299,1729546246524,-500.0,0.00047,7]
[340623300,1729546246534,-360.24404262,0.00047,7]
[340623301,1729546246545,-139.75595738,0.00047,7]
[340623302,1729546246554,-500.0,0.00047,7]
[340623303,1729546246563,-170.6,0.00047,7]
[340623304,1729546246572,-500.0,0.00047,7]
[340623305,1729546246582,-500.0,0.00047,7]
[340623306,1729546246591,-243.859546,0.00047,14]
[340623307,1729546246600,-243.859546,0.00047,14]
[340623308,1729546246609,-236.347814,0.00047,14]
[340623309,1729546246618,-236.34781,0.00047,14]
[340623310,1729546246627,-1297.62048062,0.00047,14]
[340623311,1729546246638,-500.0,0.00047,14]
[340623316,1729546427447,-150.0,0.0001449,2]
[340623317,1729546758017,162.94,0.00010959,2]
[340623318,1729547006127,200.0,0.00010904,2]
[340623319,1729547132314,200.0,0.00010849,2]
[340623324,1729547186732,-151.0,0.0003,120]
[340623325,1729547217349,-2056.0,0.000187,2]
[340623326,1729547217370,-300.0,0.00019725,2]
[340623327,1729547217393,-420.0,0.00021484,2]
[340623328,1729547217416,-432.27808991,0.000229,2]
[340623329,1729547217441,-180.0,0.00023401,2]
[340623330,1729547217462,-6163.48862414,0.00023401,2]
[340623331,1729547217482,-375.0,0.00023921,2]
[340623333,1729547223165,205.0,0.00023,2]
[340623347,1729547372647,-598.104945,0.00026527,2]
[340623348,1729547372668,-334.63638157,0.00026561,2]
[340623349,1729547372688,-750.0,0.00026661,2]
[340623350,1729547372711,-1125.0,0.00029401,2]
[340623377,1729547431903,-1500.0,0.0003214,2]
[340623379,1729547431912,-180.05,0.0003299,2]
[340623381,1729547431921,-499.99,0.00033274,2]
[340623383,1729547431930,-150.0,0.0003339,120]
[340623384,1729547431939,-849.44,0.0003339,90]
[340623386,1729547431949,-150.0,0.00034143,30]
[340623388,1729547431958,-1910.11,0.00034143,2]
[340623390,1729547431967,-150.99,0.00034143,2]
[340623392,1729547431976,-1875.0,0.0003488,2]
[340623393,1729547431985,-151.0,0.00034897,2]
[340623394,1729547431994,-151.0,0.00035452,120]